bitfinex-derivatives/quotes_SOLF0:USTF0_20241105
["timestamp","ask_amount","ask_price","bid_price","bid_amount"]
[1730818170311,2.0912,167.43,167.34,4.18]
[1730818170512,2.0912,167.43,167.39,2.0916]
[1730818170919,2.0911,167.44,167.39,2.0916]
[1730818171215,13.37677389,167.45,167.39,4.18]
[1730818172020,15.46777389,167.45,167.39,4.18]
[1730818172318,13.37677389,167.45,167.39,4.18]
[1730818173209,15.46767389,167.45,167.41,2.0913]
[1730818173616,13.37677389,167.45,167.39,4.18]
[1730818176118,13.37677389,167.45,167.43,2.091]
[1730818176327,13.37677389,167.45,167.39,4.18]
[1730818176528,13.37677389,167.45,167.4,2.0914]
[1730818176828,13.37677389,167.45,167.39,4.18]
[1730818177020,13.37677389,167.45,167.4,18.37130977]
[1730818177318,13.37677389,167.45,167.44,2.091]
[1730818177519,1.23886151,167.45,167.44,6.271]
[1730818177714,1.23886151,167.45,167.4,11.46310969]
[1730818177914,1.23886151,167.45,167.43,2.091]
[1730818178222,1.23886151,167.45,167.42,4.18]
[1730818178615,1.23886151,167.45,167.41,2.0913]
[1730818178616,1.23886151,167.45,167.41,4.18]
[1730818179618,1.23886151,167.45,167.44,2.091]
[1730818180019,1.23886151,167.45,167.42,6.2711]
[1730818180321,1.23886151,167.45,167.41,4.18]
[1730818180515,1.23886151,167.45,167.42,2.0912]
[1730818180712,1.23886151,167.45,167.41,4.18]
[1730818181618,1.23886151,167.45,167.42,4.18]
[1730818181824,1.23886151,167.45,167.44,2.091]
[1730818182324,1.23886151,167.45,167.44,13.55410969]
[1730818183614,3.8981,167.56,167.44,11.46310969]
[1730818183815,2.0899,167.53,167.48,2.0904]
[1730818184118,2.0899,167.53,167.47,4.18]
[1730818184319,11.46310969,167.55,167.48,2.0904]
[1730818184929,11.46310969,167.55,167.47,4.18]
[1730818185120,2.0901,167.52,167.47,6.2705]
[1730818185321,11.46310969,167.55,167.47,4.18]
[1730818185525,2.0898,167.54,167.49,2.0903]
[1730818185720,2.0898,167.54,167.49,11.46310969]
[1730818186225,2.0898,167.54,167.49,13.55340969]
[1730818186930,2.0898,167.54,167.5,2.0902]
[1730818187130,2.0898,167.54,167.37,2.97271075]
[1730818187131,3.8981,167.56,167.37,2.97271075]
[1730818187321,3.8981,167.56,167.45,2.0908]
[1730818187322,11.46310969,167.54,167.45,2.0908]
[1730818187526,15.36120969,167.56,167.45,11.46310969]
[1730818187723,2.09,167.52,167.45,11.46310969]
[1730818188227,11.46310969,167.53,167.43,15.64310969]
[1730818188431,11.46310969,167.53,167.45,2.0908]
[1730818188626,8.0781,167.56,167.45,2.0908]
[1730818188627,8.0781,167.56,167.45,11.46310969]
[1730818189229,1.0,167.55,167.45,11.46310969]
[1730818189736,2.0899,167.54,167.45,11.46310969]
[1730818189928,1.0,167.55,167.45,11.46310969]
[1730818190129,2.09,167.52,167.47,2.0906]
[1730818190334,11.46310969,167.54,167.34,4.1844]
[1730818190529,11.46310969,167.54,167.42,11.46310969]
[1730818190733,1.0,167.55,167.47,2.0905]
[1730818191234,2.0899,167.53,167.47,2.0905]
[1730818191434,1.0,167.55,167.46,11.46310969]
[1730818191936,2.0899,167.53,167.46,11.46310969]
[1730818192434,1.0,167.55,167.46,11.46310969]
[1730818192937,1.0,167.55,167.44,11.46310969]
[1730818193126,2.0901,167.52,167.47,2.0905]
[1730818193433,1.0,167.55,167.44,11.46310969]
[1730818193434,11.46310969,167.54,167.44,11.46310969]
[1730818193624,2.0902,167.51,167.46,2.0907]
[1730818193829,11.46310969,167.54,167.44,11.46310969]
[1730818195538,2.0901,167.52,167.48,2.0904]
[1730818196425,2.0901,167.52,167.44,11.46310969]
[1730818196625,1.0,167.55,167.44,11.46310969]
[1730818197037,2.0898,167.54,167.5,2.0902]
[1730818197432,2.0898,167.54,167.44,11.46310969]
[1730818197737,1.0,167.55,167.44,11.46310969]
[1730818197936,3.8981,167.56,167.48,11.46310969]
[1730818198338,3.8981,167.56,167.5,2.0902]
[1730818198642,5.9876,167.56,167.48,11.46310969]
[1730818198943,3.8981,167.56,167.48,11.46310969]
[1730818199333,3.8981,167.56,167.47,4.1]
[1730818199838,2.09,167.53,167.47,4.1]
[1730818200030,2.09,167.53,167.49,2.0903]
[1730818200230,2.0897,167.55,167.47,15.56310969]
[1730818200433,3.8981,167.56,167.47,15.56310969]
[1730818201338,3.8981,167.56,167.52,2.09]
[1730818201945,5.9876,167.56,167.51,2.0901]
[1730818202139,3.8981,167.56,167.51,2.0901]
[1730818202332,2.0897,167.55,167.47,15.56310969]
[1730818202537,2.0897,167.55,167.51,2.0901]
[1730818202738,3.8981,167.56,167.51,2.0901]
[1730818203039,3.8981,167.56,167.49,2.0903]
[1730818203245,3.8981,167.56,167.5,11.46310969]
[1730818203751,11.46310969,167.62,167.5,11.46310969]
[1730818203946,11.46310969,167.62,167.47,4.1]
[1730818203947,2.6235,167.61,167.52,11.46310969]
[1730818204141,2.6235,167.61,167.54,2.0897]
[1730818204448,3.6235,167.61,167.54,2.0897]
[1730818204850,3.6235,167.61,167.54,11.46310969]
[1730818205344,3.6235,167.61,167.55,2.0896]
[1730818205641,3.6235,167.61,167.54,11.46310969]
[1730818206343,3.6235,167.61,167.56,2.0894]
[1730818206537,3.6235,167.61,167.54,11.46310969]
[1730818206744,1.0,167.61,167.6,11.46310969]
[1730818207043,3.02408635,167.74,167.6,11.46310969]
[1730818207044,2.6799,167.7,167.6,11.46310969]
[1730818207647,1.0,167.69,167.6,11.46310969]
[1730818208844,2.282,167.69,167.6,11.46310969]
[1730818209347,2.282,167.69,167.65,2.0883]
[1730818209743,2.282,167.69,167.62,11.46310969]
[1730818210057,17.95,167.87,167.67,11.46310969]
[1730818210255,0.99915467,167.86,167.73,11.46310969]
[1730818210441,5.52582821,167.86,167.75,11.46310969]
[1730818210639,11.46310969,167.83,167.74,4.1]
[1730818210944,11.46310969,167.83,167.73,11.46310969]
[1730818211143,11.46310969,167.76,167.69,4.1]
[1730818211338,2.5794,167.75,167.68,4.1]
[1730818211748,2.5794,167.75,167.68,15.56310969]
[1730818212740,1.0,167.82,167.68,15.56310969]
[1730818212741,1.0,167.82,167.76,2.0869]
[1730818212947,2.6571,167.81,167.73,4.1]
[1730818213344,2.6571,167.81,167.68,11.46310969]
[1730818213345,11.46310969,167.8,167.68,11.46310969]
[1730818213544,11.46310969,167.8,167.69,4.1]
[1730818214148,11.46310969,167.8,167.74,2.0871]
[1730818214745,11.46310969,167.8,167.77,2.0868]
[1730818214942,11.46310969,167.78,167.68,4.1]
[1730818215353,1.0,167.79,167.68,15.56310969]
[1730818215550,1.0,167.79,167.73,11.46310969]
[1730818215859,12.80520969,167.8,167.73,4.1]
[1730818216053,11.46310969,167.78,167.7,4.1]
[1730818216352,11.46310969,167.78,167.74,2.0871]
[1730818216650,11.46310969,167.78,167.7,4.1]
[1730818216858,12.80520969,167.8,167.77,2.0868]
[1730818217356,11.46310969,167.78,167.7,4.1]
[1730818217945,11.46310969,167.78,167.72,2.0874]
[1730818218145,1.3421,167.8,167.7,4.1]
[1730818218146,12.80520969,167.8,167.7,4.1]
[1730818218352,1.3421,167.8,167.7,4.1]
[1730818218550,12.80520969,167.8,167.77,2.0868]
[1730818218853,12.80520969,167.8,167.7,4.1]
[1730818219053,2.6571,167.81,167.8,2.0865]
[1730818219254,1.3868,167.81,167.8,2.0865]
[1730818219457,11.46310969,167.86,167.75,15.56310969]
[1730818219655,1.3109,167.86,167.85,2.0859]
[1730818219852,1.3109,167.86,167.74,15.56310969]
[1730818220053,12.77400969,167.86,167.75,4.1]
[1730818220751,12.77400969,167.86,167.83,2.0861]
[1730818221056,12.77400969,167.86,167.75,4.1]
[1730818221462,1.3109,167.86,167.84,2.0859]
[1730818221652,12.77400969,167.86,167.75,4.1]
[1730818222055,12.77400969,167.86,167.82,2.0861]
[1730818222254,12.77400969,167.86,167.75,4.1]
[1730818222255,12.77400969,167.86,167.76,11.46310969]
[1730818222548,1.3109,167.86,167.77,4.1]
[1730818222859,11.46310969,167.85,167.78,4.1]
[1730818223663,11.46310969,167.85,167.83,2.0861]
[1730818223861,1.3564,167.87,167.81,4.1]
[1730818224063,1.3564,167.87,167.8,2.0864]
[1730818224064,11.46310969,167.85,167.8,2.0864]
[1730818224365,11.46310969,167.85,167.79,4.1]
[1730818224754,11.46310969,167.85,167.75,11.46310969]
[1730818225056,12.98211752,167.88,167.75,11.46310969]
[1730818225255,11.46310969,167.87,167.76,4.1]
[1730818225458,12.98211752,167.88,167.77,11.46310969]
[1730818225655,24.44522721,167.88,167.77,11.46310969]
[1730818226257,24.44522721,167.88,167.76,4.1]
[1730818226461,11.46310969,167.83,167.55,2.58402577]
[1730818226654,11.46310969,167.78,167.6,44.01523964]
[1730818226855,11.46310969,167.78,167.66,11.46310969]
[1730818227060,11.46310969,167.78,167.61,5.19523964]
[1730818227061,11.46310969,167.76,167.67,1.09523964]
[1730818227259,11.46310969,167.76,167.65,1.09523964]
[1730818227461,11.46310969,167.76,167.66,1.09561539]
[1730818227666,4.0229,167.77,167.67,4.1]
[1730818228355,11.46310969,167.76,167.6,42.92]
[1730818228566,13.55010969,167.76,167.65,2.0883]
[1730818228765,11.46310969,167.74,167.63,11.46310969]
[1730818229265,11.46310969,167.76,167.65,11.46310969]
[1730818229458,11.46310969,167.76,167.66,4.1]
[1730818230460,11.46310969,167.74,167.66,4.1]
[1730818230654,11.46310969,167.74,167.69,2.0878]
[1730818231353,11.46310969,167.72,167.66,2.0882]
[1730818231862,4.0229,167.77,167.65,11.46310969]
[1730818232068,4.0229,167.77,167.64,4.1]
[1730818232069,11.46310969,167.74,167.64,4.1]
[1730818232261,11.46310969,167.72,167.64,4.1]
[1730818232463,11.46310969,167.72,167.66,2.0882]
[1730818232664,11.46310969,167.72,167.64,4.1]
[1730818232959,11.46310969,167.74,167.64,15.56310969]
[1730818233166,1.0,167.76,167.64,15.56310969]
[1730818233167,1.0,167.76,167.66,11.46310969]
[1730818233759,15.48600969,167.77,167.69,11.46310969]
[1730818233760,4.0229,167.77,167.69,11.46310969]
[1730818234263,4.0229,167.77,167.74,2.0872]
[1730818234465,4.0229,167.77,167.69,15.56310969]
[1730818234661,4.1,167.81,167.71,11.46310969]
[1730818234962,11.46310969,167.84,167.73,11.46310969]
[1730818235160,3.8997,167.87,167.76,11.46310969]
[1730818235365,12.98211752,167.88,167.78,11.46310969]
[1730818235562,12.98211752,167.88,167.81,11.46310969]
[1730818235754,12.98211752,167.88,167.83,2.086]
[1730818235959,12.98211752,167.88,167.81,4.1]
[1730818236865,31.28673929,167.88,167.6,2.58402577]
[1730818237061,18.30462177,167.85,167.61,5.19524474]
[1730818237263,22.40462177,167.85,167.69,18.30462177]
[1730818237467,22.40462177,167.85,167.66,18.30462177]
[1730818237468,18.30462177,167.79,167.66,18.30462177]
[1730818237658,1.3806,167.78,167.66,18.30462177]
[1730818237862,2.6995,167.78,167.66,18.30462177]
[1730818238464,8.8863,167.78,167.7,2.0877]
[1730818238665,6.7995,167.78,167.64,4.1]
[1730818238863,18.30462177,167.77,167.64,4.1]
[1730818239065,2.0871,167.75,167.68,2.0879]
[1730818239271,18.30462177,167.77,167.68,2.0879]
[1730818239464,4.1,167.77,167.65,1.3567]
[1730818239768,2.6995,167.78,167.66,18.30462177]
[1730818240365,2.6995,167.78,167.72,2.0874]
[1730818240567,2.6995,167.78,167.66,18.30462177]
[1730818240868,2.6995,167.78,167.73,2.0874]
[1730818241474,2.6995,167.78,167.66,18.30462177]
[1730818242372,2.6995,167.78,167.65,1.3567]
[1730818242373,4.1,167.81,167.69,18.30462177]
[1730818242563,1.3228,167.82,167.72,18.30462177]
[1730818243669,1.3228,167.82,167.73,4.1]
[1730818243873,1.0,167.84,167.73,5.4434]
[1730818244063,4.1,167.86,167.81,2.0863]
[1730818244263,4.1,167.86,167.73,5.4434]
[1730818244672,4.1,167.86,167.79,2.0865]
[1730818244673,2.0859,167.85,167.79,2.0865]
[1730818245370,2.0859,167.85,167.73,5.4434]
[1730818245371,12.98211752,167.88,167.8,4.1]
[1730818245577,12.98211752,167.88,167.78,18.30462177]
[1730818245765,12.98211752,167.88,167.79,4.1]
[1730818246070,12.98211752,167.88,167.75,18.30462177]
[1730818246270,12.98211752,167.88,167.76,4.1]
[1730818246271,1.3731,167.87,167.76,4.1]
[1730818246466,2.6488,167.87,167.76,4.1]
[1730818246668,2.0859,167.86,167.8,2.0865]
[1730818246868,2.6488,167.87,167.77,4.1]
[1730818247366,18.30462177,167.85,167.74,4.1]
[1730818247576,18.30462177,167.82,167.67,18.30462177]
[1730818247875,18.30462177,167.82,167.68,4.1]
[1730818248382,20.39092177,167.82,167.72,2.0874]
[1730818248679,18.30462177,167.82,167.73,4.1]
[1730818248979,2.0864,167.81,167.75,2.087]
[1730818249282,4.1,167.84,167.73,4.1]
[1730818249571,4.1,167.84,167.79,2.0866]
[1730818249773,18.30462177,167.85,167.73,4.1]
[1730818249975,2.0858,167.86,167.77,2.0868]
[1730818250166,2.0858,167.86,167.73,5.4155]
[1730818250364,2.6488,167.87,167.73,5.4155]
[1730818250674,18.30462177,167.85,167.73,5.4155]
[1730818251069,18.30462177,167.85,167.77,2.0868]
[1730818251372,18.30462177,167.85,167.73,5.4155]
[1730818252179,20.39052177,167.85,167.73,5.4155]
[1730818252375,18.30462177,167.85,167.73,5.4155]
[1730818252574,18.30462177,167.83,167.69,18.30462177]
[1730818252775,18.30462177,167.83,167.7,4.1]
[1730818253379,2.0864,167.81,167.75,2.087]
[1730818253577,18.30462177,167.83,167.7,4.1]
[1730818253967,2.0865,167.8,167.74,2.0871]
[1730818254169,18.30462177,167.83,167.7,4.1]
[1730818255175,2.0865,167.81,167.75,2.0871]
[1730818255377,18.30462177,167.83,167.7,4.1]
[1730818255679,18.30462177,167.8,167.7,4.1]
[1730818255874,1.2969,167.79,167.7,4.1]
[1730818256975,3.3835,167.79,167.74,2.0872]
[1730818257177,1.2969,167.79,167.74,2.0872]
[1730818257472,1.2969,167.79,167.7,4.1]
[1730818257874,1.2969,167.79,167.74,2.0872]
[1730818258071,1.2969,167.79,167.7,4.1]
[1730818258269,1.2969,167.79,167.74,2.0872]
[1730818258469,1.2969,167.79,167.66,19.65002177]
[1730818258470,2.6849,167.79,167.66,19.65002177]
[1730818258668,2.6849,167.79,167.67,4.14]
[1730818259079,2.6849,167.79,167.68,4.14]
[1730818259280,2.6849,167.79,167.76,2.0869]
[1730818259477,2.0857,167.87,167.75,4.14]
[1730818259678,18.30462177,167.89,167.76,5.4569]
[1730818259979,2.7156,167.91,167.77,4.14]
[1730818259980,1.3879,167.86,167.77,4.14]
[1730818260275,1.3879,167.86,167.7,18.30462177]
[1730818260576,18.30462177,167.84,167.71,4.14]
[1730818260777,18.30462177,167.84,167.7,18.30462177]
[1730818260985,2.7201,167.83,167.71,4.14]
[1730818261475,2.7201,167.83,167.72,18.30462177]
[1730818261871,2.7201,167.83,167.7,18.30462177]
[1730818262076,2.7201,167.83,167.71,4.14]
[1730818263179,2.7201,167.83,167.74,2.0871]
[1730818263380,2.7201,167.83,167.71,4.14]
[1730818263683,2.7201,167.83,167.76,2.087]
[1730818263878,2.7201,167.83,167.71,4.14]
[1730818264179,1.3276,167.83,167.72,18.30462177]
[1730818264379,2.0863,167.82,167.72,4.14]
[1730818264580,19.63222177,167.83,167.72,4.14]
[1730818264980,2.0865,167.8,167.72,4.14]
[1730818265175,1.3276,167.83,167.72,4.14]
[1730818265876,1.3276,167.83,167.79,2.0865]
[1730818266077,1.3276,167.83,167.72,4.14]
[1730818266675,19.63222177,167.83,167.73,4.14]
[1730818267184,2.0864,167.82,167.76,2.0869]
[1730818267381,19.63222177,167.83,167.76,2.0869]
[1730818267592,2.0863,167.82,167.76,2.087]
[1730818267772,2.0863,167.82,167.73,4.14]
[1730818268182,2.0863,167.82,167.76,2.0869]
[1730818268374,2.0864,167.81,167.76,2.0869]
[1730818268575,19.63222177,167.83,167.73,4.14]
[1730818268976,19.63222177,167.83,167.76,2.087]
[1730818268977,2.0863,167.82,167.76,2.087]
[1730818269183,19.63222177,167.83,167.73,4.14]
[1730818269380,23.77222177,167.83,167.73,4.14]
[1730818270178,23.77222177,167.83,167.64,1.2801]
[1730818270179,18.30462177,167.8,167.64,1.2801]
[1730818270376,18.30462177,167.77,167.65,4.14]
[1730818270981,18.30462177,167.77,167.72,2.0874]
[1730818271480,19.57142177,167.77,167.72,2.0874]
[1730818272486,19.57142177,167.77,167.64,1.2801]
[1730818272487,2.0872,167.75,167.64,1.2801]
[1730818272687,1.351,167.74,167.62,54.12238663]
[1730818272887,18.30462177,167.72,167.62,4.14]
[1730818273395,18.30462177,167.69,167.58,4.14]
[1730818273584,18.30462177,167.66,167.55,4.14]
[1730818273783,18.30462177,167.64,167.51,1.3612]
[1730818273981,18.30462177,167.64,167.6,2.0889]
[1730818274186,18.30462177,167.64,167.51,5.5012]
[1730818274187,1.0,167.71,167.58,4.14]
[1730818274496,18.30462177,167.77,167.6,18.30462177]
[1730818274692,2.0871,167.76,167.6,18.30462177]
[1730818275084,2.0871,167.76,167.7,2.0877]
[1730818275286,18.30462177,167.77,167.65,4.14]
[1730818275692,18.30462177,167.77,167.7,2.0877]
[1730818275891,18.30462177,167.77,167.65,4.14]
[1730818275892,20.39152177,167.77,167.65,4.14]
[1730818276198,18.30462177,167.77,167.65,4.14]
[1730818276390,3.9506,167.78,167.7,2.0877]
[1730818276690,3.9506,167.78,167.65,4.14]
[1730818276691,22.25522177,167.78,167.65,4.14]
[1730818276885,22.25522177,167.78,167.72,2.0875]
[1730818277087,2.0869,167.77,167.65,4.14]
[1730818277289,22.25522177,167.78,167.65,4.14]
[1730818277896,24.34212177,167.78,167.65,4.14]
[1730818278195,22.25522177,167.78,167.7,2.0877]
[1730818278902,22.25522177,167.78,167.65,4.14]
[1730818279092,3.9506,167.78,167.65,4.14]
[1730818279294,3.9506,167.78,167.66,18.30462177]
[1730818279606,3.9506,167.78,167.74,2.0871]
[1730818280200,3.9506,167.78,167.69,4.14]
[1730818280594,2.087,167.76,167.69,4.14]
[1730818280806,22.25522177,167.78,167.69,4.14]
[1730818281099,2.087,167.76,167.69,4.14]
[1730818281309,2.087,167.76,167.7,2.0876]
[1730818281496,3.9506,167.78,167.69,4.14]
[1730818282305,1.2927,167.78,167.71,2.0875]
[1730818282493,12.98211752,167.88,167.7,18.30462177]
[1730818282494,18.30462177,167.85,167.7,18.30462177]
[1730818282695,18.30462177,167.85,167.7,22.44462177]
[1730818282894,18.30462177,167.82,167.7,4.14]
[1730818283094,18.30462177,167.82,167.74,2.0872]
[1730818283402,2.0866,167.79,167.7,4.14]
[1730818283707,18.30462177,167.82,167.7,4.14]
[1730818284014,2.0867,167.79,167.7,4.14]
[1730818284195,2.0867,167.79,167.74,2.0872]
[1730818284806,18.30462177,167.82,167.7,4.14]
[1730818285003,2.0869,167.77,167.72,2.0874]
[1730818285206,18.30462177,167.79,167.67,1.3088]
[1730818285501,18.30462177,167.79,167.66,4.14]
[1730818285502,2.0874,167.73,167.66,4.14]
[1730818285705,18.30462177,167.76,167.66,4.14]
[1730818286599,2.0873,167.74,167.69,2.0878]
[1730818286807,18.30462177,167.76,167.66,4.14]
[1730818287201,3.9095,167.78,167.66,4.14]
[1730818287399,11.45625668,167.77,167.67,1.2951]
[1730818288005,11.45625668,167.77,167.68,4.3]
[1730818288304,11.45625668,167.77,167.72,2.0874]
[1730818288604,11.45625668,167.77,167.68,4.3]
[1730818289105,2.6216,167.86,167.71,11.45625668]
[1730818289303,2.6216,167.86,167.76,2.0869]
[1730818289304,18.31603941,167.85,167.76,2.0869]
[1730818289510,2.0864,167.82,167.75,4.3]
[1730818289704,18.31603941,167.85,167.75,4.3]
[1730818289912,18.31603941,167.82,167.75,4.3]
[1730818290104,2.0866,167.8,167.75,4.3]
[1730818290304,18.31603941,167.82,167.75,4.3]
[1730818290500,18.31603941,167.79,167.75,4.3]
[1730818290705,18.31603941,167.79,167.67,1.2951]
[1730818290902,18.31603941,167.79,167.68,4.3]
[1730818291107,1.3695,167.78,167.68,4.3]
[1730818291401,2.087,167.76,167.68,4.3]
[1730818291607,1.3695,167.78,167.68,4.3]
[1730818292508,1.3695,167.78,167.7,2.0876]
[1730818292706,1.3695,167.78,167.68,4.3]
[1730818293009,2.0873,167.74,167.68,4.3]
[1730818293216,3.9921,167.78,167.72,2.0874]
[1730818293608,2.0871,167.75,167.68,4.3]
[1730818293808,2.0871,167.75,167.7,2.0876]
[1730818294009,18.31603941,167.76,167.68,4.3]
[1730818294405,18.31603941,167.76,167.69,2.0879]
[1730818294609,18.31603941,167.76,167.67,5.5951]
[1730818295010,18.31603941,167.76,167.69,2.0878]
[1730818295209,18.31603941,167.76,167.67,1.2951]
[1730818295412,2.0874,167.73,167.67,1.2951]
[1730818295611,18.31603941,167.76,167.66,4.3]
[1730818296211,18.31603941,167.73,167.62,4.3]
[1730818296714,2.0878,167.7,167.66,2.0882]
[1730818296913,18.31603941,167.73,167.6,1.2782]
[1730818297115,20.40423941,167.67,167.62,2.0886]
[1730818297316,4.3,167.72,167.58,4.3]
[1730818297724,2.0885,167.64,167.55,1.3199]
[1730818298016,4.3,167.72,167.56,4.3]
[1730818298221,2.0881,167.68,167.6,2.0889]
[1730818298515,4.3,167.72,167.56,4.3]
[1730818298724,18.31603941,167.63,167.56,4.3]
[1730818299027,2.0888,167.62,167.56,4.3]
[1730818299513,2.0889,167.61,167.56,6.3894]
[1730818299713,19.59983941,167.66,167.56,4.3]
[1730818299912,1.2838,167.66,167.56,4.3]
[1730818300114,2.6791,167.67,167.56,22.61603941]
[1730818300316,18.31603941,167.73,167.59,18.31603941]
[1730818300629,1.2838,167.77,167.59,18.31603941]
[1730818300630,18.31603941,167.75,167.59,18.31603941]
[1730818301124,2.0877,167.71,167.65,2.0883]
[1730818301329,2.6372,167.76,167.64,4.3]
[1730818301625,2.0875,167.73,167.67,2.0881]
[1730818301819,2.6372,167.76,167.64,4.3]
[1730818302123,2.6372,167.76,167.65,1.2618]
[1730818302419,2.0875,167.73,167.68,2.088]
[1730818302625,18.31603941,167.75,167.61,18.31603941]
[1730818302824,18.31603941,167.75,167.62,4.3]
[1730818303317,18.31603941,167.75,167.59,18.31603941]
[1730818303519,6.9372,167.76,167.59,4.3]
[1730818303719,18.31603941,167.73,167.59,4.3]
[1730818304220,4.3,167.75,167.59,4.3]
[1730818304428,18.31603941,167.74,167.59,4.3]
[1730818304633,2.0876,167.71,167.61,18.31603941]
[1730818304818,22.61603941,167.75,167.61,18.31603941]
[1730818305125,2.0877,167.71,167.66,2.0881]
[1730818305321,22.61603941,167.75,167.66,2.0881]
[1730818306519,2.0877,167.71,167.61,18.31603941]
[1730818306719,18.31603941,167.75,167.61,18.31603941]
[1730818307016,18.31603941,167.75,167.68,2.088]
[1730818307223,18.31603941,167.75,167.65,4.3]
[1730818307421,2.0875,167.72,167.68,2.088]
[1730818307618,18.31603941,167.75,167.65,4.3]
[1730818307927,2.6372,167.76,167.61,4.3]
[1730818307928,18.31603941,167.72,167.61,4.3]
[1730818308121,18.31603941,167.72,167.63,2.0885]
[1730818308422,18.31603941,167.72,167.61,4.3]
[1730818309127,2.0883,167.66,167.62,2.0886]
[1730818309523,18.31603941,167.72,167.58,4.3]
[1730818309927,4.3,167.74,167.58,4.3]
[1730818310131,18.31603941,167.72,167.58,4.3]
[1730818310527,2.0879,167.7,167.59,18.31603941]
[1730818310729,18.31603941,167.72,167.59,18.31603941]
[1730818310929,2.0881,167.67,167.62,2.0886]
[1730818311128,18.31603941,167.72,167.58,4.3]
[1730818311520,2.088,167.69,167.58,4.3]
[1730818311929,18.31603941,167.72,167.58,4.3]
[1730818312127,2.0878,167.7,167.65,2.0882]
[1730818312427,18.31603941,167.72,167.64,4.3]
[1730818312628,2.0876,167.71,167.66,2.0882]
[1730818312829,18.31603941,167.74,167.64,4.3]
[1730818313226,18.31603941,167.74,167.64,6.3884]
[1730818313531,18.31603941,167.74,167.64,4.3]
[1730818313721,2.0876,167.71,167.65,2.0883]
[1730818313927,18.31603941,167.74,167.65,2.0883]
[1730818314527,18.31603941,167.71,167.64,4.3]
[1730818314830,2.0882,167.67,167.6,4.3]
[1730818315025,18.31603941,167.74,167.68,2.0879]
[1730818315225,1.3314,167.76,167.66,4.3]
[1730818315421,1.3314,167.76,167.67,4.3]
[1730818315623,3.4185,167.76,167.72,2.0874]
[1730818315822,1.3314,167.76,167.67,4.3]
[1730818316227,3.4185,167.76,167.71,2.0875]
[1730818316426,1.3314,167.76,167.67,4.3]
[1730818316626,1.2613,167.84,167.68,22.49603941]
[1730818316627,18.31603941,167.83,167.68,22.49603941]
[1730818316833,19.61993941,167.83,167.68,22.49603941]
[1730818317230,3.39,167.83,167.78,2.0867]
[1730818317433,1.3039,167.83,167.74,4.18]
[1730818317832,2.0866,167.8,167.75,2.0871]
[1730818318033,18.31603941,167.82,167.74,4.18]
[1730818318225,18.31603941,167.82,167.7,4.18]
[1730818318428,18.31603941,167.82,167.73,2.0873]
[1730818318631,18.31603941,167.79,167.7,4.18]
[1730818319036,18.31603941,167.79,167.71,2.0876]
[1730818319534,2.0869,167.77,167.73,2.0873]
[1730818319835,18.31603941,167.79,167.7,4.18]
[1730818320534,2.087,167.76,167.68,4.18]
[1730818320837,18.31603941,167.76,167.65,4.18]
[1730818321037,4.0323,167.75,167.65,4.18]
[1730818321634,2.0877,167.71,167.66,2.0882]
[1730818321830,18.31603941,167.67,167.54,50.00424094]
[1730818322034,1.3552,167.66,167.55,4.18]
[1730818322228,3.953,167.66,167.55,4.18]
[1730818322533,1.3552,167.66,167.57,18.31603941]
[1730818322731,1.3552,167.66,167.55,4.18]
[1730818323341,1.3552,167.66,167.58,2.0892]
[1730818323542,1.3552,167.66,167.55,4.18]
[1730818323543,1.2836,167.69,167.57,18.31603941]
[1730818323927,3.3715,167.69,167.63,2.0886]
[1730818324136,18.31603941,167.76,167.61,4.18]
[1730818324440,2.0873,167.74,167.67,2.088]
[1730818324636,2.0873,167.74,167.67,4.18]